Workbook

Sheet ورقة1
B3: https://www.officena.net/ib/topic/113773-%D9%85%D8%A7-%D8%A7%D9%84%D8%AE%D8%B7%D8%A3-%D9%81%D9%8A-%D8%A7%D9%84%D9%83%D9%88%D8%AF/
B6: فورم لعرض التسهيلات والاستحقاقات
B8: وفي اسفل اربع خانات لتلخص النتئج المعروضه
B10: الخانة الاولى اجمالي التسهيلات المعروضه الخانة الثانية يفترض ان تعرض التسهيلات اللي تاريخ حقها اقل من او يساوي التاريخ في تكست بوكس 5 اعلى الفورم ولا اعلم ما الخطأ في الكود لا تعمل بشكل جيد
B12: و خانة رقم 4 تعرض المستحق خلال الشهر وتعمل جيد
B14: وهل يمكن تغيير فورمات التاريخ المعروض في لليست بوكس عمود 1؟
B16: وهل يمكن تظليل سطور الليست بوكس اذا وافقت شرط معين مثلا اذا كان تاريخ الاستحقاق اقل من او يساوي التاريخ في تكست 5 ؟
B18: اخيرا هل يمكن كتابة عناوين للاعمده في الليست بوكس ؟
B20: وهل يمكن طباعة النموذج او التحكم في طباعة البيانات المعروضه فيه

Sheet setup
B1: new | C1: old | E1: الموردين | H1: التسهيلات | M1: الشركة | P1: ائتمان المورد | Q1: الحالة | S1: نوع التغيير
A2: رقم المتابعة | B2: =C2+1 -> 7 | C2: 6 | E2: كود المورد | F2: اسم المورد | H2: البنوك | J2: =SUM(J4:J15) -> 12000000 | M2: كود الشركة | N2: اسم الشركة | P2: نوع السداد | Q2: تسهيل | S2: تدبير
A3: رقم السداد | E3: 1 | F3: simon | G3: china | H3: كود البنك | I3: اسم البنك | J3: التسهيل | K3: نسبة العمولة | M3: 1 | N3: اكاي للصناعة | P3: 0 | Q3: سداد | S3: تسهيل
E4: 2 | F4: samir | G4: china | H4: 1 | I4: ابوظبي | J4: 5000000 | K4: 0.05 | M4: 2 | P4: 90 | Q4: مورد
E5: 3 | F5: james | G5: china | H5: 2 | I5: مصر الإسلامي | J5: 7000000 | K5: 0.05 | M5: 3 | P5: 180 | Q5: change
E6: 4 | F6: wilson | G6: china | H6: 3 | I6: العربي الكويتي | M6: 4
E7: 5 | F7: bahroz | G7: turky | H7: 4 | I7: بنك قطر | M7: 5
E8: 6 | F8: akel | G8: turky | M8: 6
E9: 7 | M9: 7
E10: 8 | M10: 8
E11: 9 | M11: 9
E12: 10 | M12: 10
E13: 11
E14: 12
E15: 13
E16: 14
E17: 15 | F17: محلي
D65520: اسم المستخدم | E65520: كلمه السر | F65520: السلطه
D65521: m | E65521: mae2510 | F65521: جميع الصلاحيات
D65522: 5 | E65522: 5 | F65522: ادخال اليوميات فقط
D65523: 6 | E65523: 6 | F65523: اضافة عمالة واصناف
D65524: 7 | E65524: 7 | F65524: اضافة عمالة واصناف وادخال اليوميات
D65535: 19

Sheet loans
A1: متابعة وإدارة التسهيلات البنكية | S1: =COLUMN() -> 19 | T1: =COLUMN() -> 20 | U1: =COLUMN() -> 21 | V1: =COLUMN() -> 22 | W1: =COLUMN() -> 23
A2: كود البنك | B2: 1 | C2: اسم البنك | D2: كل البنوك | G2: قيمة التسهيل | H2: =IFERROR([2]setup!J2,"") -> 12000000 | I2: نسية العمولة | J2: =IFERROR(VLOOKUP(B2,[2]setup!H:K,4,FALSE),"") -> 0.05 | K2: قيمة العمولة | L2: =SUMIFS(T:T,J:J,B2) -> 0
A3: اجمالي الفواتير | B3: =SUMIFS(F$12:F4989,P$12:P4989,"<>change") -> 5496214.6 | C3: المستخدم | D3: =SUMIFS(F:F,P:P,"تسهيل") -> 4922211.6 | F3: المتبقي | G3: =IFERROR(H2-D3,0) -> 7077788.4
A4: سيولة نقدية متاحة | C4: مستخدم معدل | D4: =D3-B4 -> 4922211.6 | F4: متبقي معدل | G4: =G3+B4 -> 7077788.4 | I4: سعر الصرف | K4: المعادل | L4: =IFERROR(G4/J4,0) -> 0
A5: 0
A6: كود البنك | B6: 2 | C6: اسم البنك | D6: =IFERROR(VLOOKUP(B6,[2]setup!H:K,2,FALSE),"") -> مصر الإسلامي | G6: قيمة التسهيل | H6: =IFERROR(VLOOKUP(B6,[2]setup!H:K,3,FALSE),"") -> 7000000 | I6: نسية العمولة | J6: =IFERROR(VLOOKUP(B6,[2]setup!H:K,4,FALSE),"") -> 0.05 | K6: قيمة العمولة | L6: =SUMIFS(T:T,J:J,B6) -> 0
A7: اجمالي التسهيلات | B7: =SUMIFS(F:F,J:J,B6) -> 2053500 | C7: المستخدم | D7: =SUMIFS(F:F,J:J,B6,P:P,"تسهيل") -> 1953500 | F7: المتبقي | G7: =IFERROR(H6-D7,0) -> 5046500
A8: سيولة نقدية متاحة | B8: 0 | C8: مستخدم معدل | D8: =D7-B8 -> 1953500 | F8: متبقي معدل | G8: =G7+B8 -> 5046500 | I8: سعر الصرف | K8: المعادل | L8: =IFERROR(G8/J8,0) -> 0
A9: 0
A10: 0 | C10: =SUBTOTAL(9,C12:C4949) -> 5970217.6 | F10: =SUBTOTAL(9,F12:F4949) -> 5970217.6 | T10: =SUBTOTAL(9,T12:T4949) -> 0
A11: م | B11: رقم مرجعي البنك | C11: المبلغ | D11: العملة | E11: سعر الصرف | F11: المعادل | G11: تاريخ الحق | H11: تاريخ دفع البنك | I11: طريقة السداد | J11: كود البنك | K11: اسم البنك | L11: كود المورد | M11: اسم المورد | N11: الصنف | O11: رقم الفاتورة | P11: حالة السداد | Q11: تاريخ السداد | R11: نوع التغيير | S11: موافقة | T11: قيمة العمولة | U11: الشركة | V11: month
A12: =IF((A11)<>"م",(A11)+1,1) -> 1 | B12: 1111 | C12: 474003 | D12: جنيه | E12: 1 | F12: =(E12*C12) -> 474003 | G12: 2022-02-27 | H12: 2021-08-31 | I12: 0 | J12: 1 | K12: ابوظبي | L12: 2 | M12: maged | N12: اعادة | P12: change | Q12: 2022-02-23 | R12: تدبير | S12: p | U12: اكاي صناعة | V12: =MONTH(G12) -> 2
A13: 2 | C13: 553396.64 | D13: جنيه | E13: 1 | F13: 553396.64 | G13: 2022-01-22 | H13: 2021-10-24 | I13: 0 | J13: 1 | K13: ابوظبي | L13: 1 | M13: nader | N13: اعادة | O13: 1111 | P13: تسهيل | Q13: 2022-03-19 | R13: تدبير | U13: اكاي للصناعة | V13: =MONTH(G13) -> 1
A14: 3 | C14: 315793.2 | D14: جنيه | E14: 1 | F14: 315793.2 | G14: 2022-04-25 | H14: 2021-10-27 | I14: 0 | J14: 1 | K14: ابوظبي | L14: 2 | M14: maged | N14: اعادة | O14: 1111 | P14: تسهيل | U14: اكاي للصناعة | V14: 4
A15: 4 | B15: 11 | C15: 249680.48 | D15: جنية | E15: 1 | F15: 249680.48 | G15: 2022-07-16 | H15: 2022-01-17 | I15: 0 | J15: 1 | K15: ابوظبي | L15: 2 | M15: maged | N15: اعادة | O15: 1111 | P15: تسهيل | U15: اكاي للصناعة | V15: 7
A16: 5 | B16: 11 | C16: 262246.4 | D16: جنيه | E16: 1 | F16: 262246.4 | G16: 2022-01-16 | H16: 2022-01-17 | I16: 0 | J16: 1 | K16: ابوظبي | L16: 2 | M16: maged | N16: اعادة | O16: 1111 | P16: تسهيل | U16: اكاي للصناعة | V16: 1
A17: 6 | B17: 1 | C17: 206698.4 | D17: جنيه | E17: 1 | F17: 206698.4 | G17: 2022-07-16 | H17: 2022-01-17 | I17: 0 | J17: 1 | K17: ابوظبي | L17: 1 | M17: nader | N17: اعادة | O17: 1111 | P17: تسهيل | U17: اكاي للصناعة | V17: 7
A18: 7 | B18: 1 | C18: 161035.68 | D18: جنيه | E18: 1 | F18: 161035.68 | G18: 2022-07-16 | H18: 2022-01-17 | I18: 0 | J18: 1 | K18: ابوظبي | L18: 1 | M18: nader | N18: اعادة | O18: 1111 | P18: تسهيل | U18: اكاي للصناعة | V18: 7
A19: 8 | B19: 1 | C19: 474060.8 | D19: جنيه | E19: 1 | F19: 474060.8 | G19: 2022-01-16 | H19: 2022-01-17 | I19: 0 | J19: 1 | K19: ابوظبي | L19: 4 | M19: mostafa | N19: اعادة | O19: 1111 | P19: تسهيل | U19: اكاي للصناعة | V19: 1
A20: 9 | B20: 1111 | C20: 474003 | D20: جنيه | E20: 1 | F20: 474003 | G20: 2022-08-26 | H20: 2022-02-23 | I20: 180 | J20: 1 | K20: ابوظبي | L20: 2 | M20: maged | N20: اعادة | O20: 1111 | P20: سداد | V20: 8
A21: 10 | C21: 495800 | D21: جنيه | E21: 1 | F21: 495800 | G21: 2022-07-19 | H21: 2022-01-20 | I21: 0 | J21: 1 | K21: ابوظبي | L21: 15 | M21: محلي | N21: اعادة | O21: 1111 | P21: تسهيل | U21: اكاي للصناعة | V21: 7
A22: 11 | B22: 1 | C22: 250000 | D22: جنيه | E22: 1 | F22: 250000 | G22: 2022-09-05 | H22: 2022-03-09 | I22: 0 | J22: 1 | K22: ابوظبي | L22: 15 | M22: محلي | N22: اعادة | O22: 1111 | P22: تسهيل | U22: اكاي للصناعة | V22: 9
A23: 12 | B23: 1 | C23: 1013500 | D23: جنيه | E23: 1 | F23: 1013500 | G23: 2022-04-26 | H23: 2021-10-28 | I23: 0 | J23: 2 | K23: مصر الإسلامي | L23: 15 | M23: محلي | N23: اعادة | O23: 1111 | P23: تسهيل | U23: اكاي للصناعة | V23: 4
A24: 13 | C24: 500000 | D24: جنيه | E24: 1 | F24: 500000 | G24: 2022-04-30 | H24: 2021-11-01 | I24: 0 | J24: 2 | K24: مصر الإسلامي | L24: 15 | M24: محلي | N24: اعادة | O24: 1111 | P24: تسهيل | U24: اكاي للصناعة | V24: 4
A25: 14 | C25: 440000 | D25: جنيه | E25: 1 | F25: 440000 | G25: 2022-05-07 | H25: 2021-11-08 | I25: 0 | J25: 2 | K25: مصر الإسلامي | L25: 15 | M25: محلي | N25: اعادة | O25: 1111 | P25: تسهيل | U25: اكاي للصناعة | V25: 5
A26: =IF((A25)<>"م",(A25)+1,1) -> 15 | C26: 100000 | D26: جنيه | E26: 1 | F26: =(E26*C26) -> 100000 | G26: 2021-11-08 | H26: 2021-11-08 | I26: 0 | J26: 2 | K26: مصر الإسلامي | L26: 1 | M26: nader | P26: سداد | U26: اكاي للصناعة | V26: 11
